fUSD/lending_fUSD_20240511
["ID","MTS","AMOUNT","RATE_DAILY","PERIOD"]
[326828295,1715469873465,-150.0,0.00010952,2]
[326828296,1715469874245,-150.0,0.00010952,2]
[326828297,1715469875531,-150.0,0.00010952,2]
[326828298,1715469876815,-150.0,0.00010952,2]
[326828299,1715469878184,-150.0,0.00010952,2]
[326828300,1715469878658,-150.0,0.00010952,2]
[326828301,1715469879685,-150.0,0.00010952,2]
[326828302,1715469880374,-150.0,0.00010952,2]
[326828303,1715469881830,-150.0,0.00010952,2]
[326828304,1715469882763,-150.0,0.00010952,2]
[326828305,1715469883943,-150.0,0.00010952,2]
[326828306,1715469884443,-150.0,0.00010952,2]
[326828307,1715469885131,-150.0,0.00010952,2]
[326828308,1715469885909,-150.0,0.00010952,2]
[326828309,1715469886431,-150.0,0.00010952,2]
[326828310,1715469887840,-150.0,0.00010952,2]
[326828311,1715469888257,-150.0,0.00010952,2]
[326828312,1715469888852,-150.0,0.00010951,2]
[326828313,1715469889393,-150.0,0.00010951,2]
[326828314,1715469890013,-150.0,0.00010951,2]
[326828315,1715469890796,-150.0,0.00010951,2]
[326828316,1715469892804,-150.0,0.00010951,2]
[326828317,1715469893268,-150.0,0.00010951,2]
[326828318,1715469893733,-150.0,0.00010951,2]
[326828319,1715469894702,-150.0,0.00010951,2]
[326828320,1715469895376,-150.0,0.00010951,2]
[326828321,1715469895987,-150.0,0.00010951,2]
[326828322,1715469896580,-150.0,0.00010951,2]
[326828323,1715469898393,-150.0,0.00010951,2]
[326828324,1715469898910,-150.0,0.00010951,2]
[326828325,1715469899369,-150.0,0.00010951,2]
[326828326,1715469899877,-150.0,0.00010951,2]
[326828327,1715469900387,-150.0,0.00010951,2]
[326828328,1715469900930,-150.0,0.00010951,2]
[326828329,1715469901616,-150.0,0.00010951,2]
[326828330,1715469902668,-150.0,0.00010951,2]
[326828331,1715469903260,-150.0,0.00010951,2]
[326828332,1715469903858,-25.55522352,0.00010951,2]
[326828333,1715469903880,-124.44477648,0.00010952,2]
[326828334,1715469905764,-150.0,0.00010952,2]
[326828335,1715469908046,-150.0,0.0001095,2]
[326828336,1715469908429,-150.0,0.0001095,2]
[326828337,1715469908949,-150.0,0.0001095,2]
[326828338,1715469909536,-150.0,0.0001095,2]
[326828339,1715470031150,-204.42365204,0.00010846,2]
[326828340,1715470031170,-451.50827535,0.00010847,2]
[326828341,1715470152089,-3019.35,0.00010423,2]
[326828342,1715470152109,-1859.61,0.00010433,2]
[326828343,1715470152132,-168.19,0.00010438,2]
[326828344,1715470152152,-683.91373196,0.00010782,2]
[326828345,1715470152172,-3025.55522352,0.0001087,2]
[326828346,1715470152191,-1500.0,0.00010871,2]
[326828347,1715470152211,-2497.44,0.00010882,2]
[326828348,1715470152233,-250.0,0.00010884,2]
[326828349,1715470152253,-652.26,0.00010909,2]
[326828350,1715470152272,-1852.42,0.00010911,2]
[326828351,1715470152292,-250.0,0.00010947,2]
[326828352,1715470152312,-204.32042734,0.00010948,2]
[326828353,1715470152332,-460.035843,0.00010949,2]
[326828354,1715470152351,-150.0,0.00010949,2]
[326828355,1715470152372,-2250.0,0.0001095,2]
[326828356,1715470152392,-17555.18385783,0.0001095,2]
[326828357,1715470152419,-525.14935801,0.0001095,2]
[326828358,1715470167122,-314.48518181,0.00010949,2]
[326828359,1715470173128,-1482.87002704,0.00010949,2]
[326828360,1715470173149,-103439.60695358,0.0001095,2]
[326828361,1715470173170,-832.01,0.0001095,2]
[326828362,1715470173191,-450.0,0.00010952,2]
[326828363,1715470173211,-150.99,0.00010952,2]
[326828364,1715470173232,-279.26,0.00010952,2]
[326828365,1715470173252,-224.99,0.00010952,2]
[326828366,1715470173274,-10310.1,0.00010952,2]
[326828367,1715470173294,-2653.15,0.00010976,2]
[326828368,1715470173314,-150.0,0.00011139,2]
[326828369,1715470173334,-342.79,0.00011191,2]
[326828370,1715470173355,-938.41528503,0.00011238,2]
[326828371,1715470173376,-2075.37630886,0.00011239,2]
[326828375,1715470232302,-150.0,0.00010847,2]
[326828376,1715470232311,-150.0,0.00010847,2]
[326828377,1715470232320,-150.0,0.00010847,2]
[326828378,1715470232329,-150.0,0.00010847,2]
[326828379,1715470232338,-150.0,0.00010847,2]
[326828382,1715470232625,-150.0,0.00010847,2]
[326828383,1715470232635,-33.49206678,0.00010847,2]
[326828384,1715470232647,-116.50793322,0.00010847,2]
[326828385,1715470232656,-150.0,0.00010847,2]
[326828386,1715470232666,-71.85206678,0.00010847,2]
[326828387,1715470232678,-78.14793322,0.00010847,2]
[326828388,1715470232687,-150.0,0.00011192,2]
[326828389,1715470232698,-119.91310678,0.00011193,2]
[326828390,1715470232709,-14731.68923462,0.00011193,2]
[326828391,1715470232754,-925.04343273,0.00011193,2]
[326828392,1715470232765,-522.13920169,0.00011193,2]
[326828400,1715470238301,-411.93521121,0.00011193,2]
[326828401,1715470238313,-880.53981297,0.00011193,2]
[326828402,1715470238323,-294.15,0.00011307,2]
[326828403,1715470238332,-151.96,0.00011329,2]
[326828404,1715470238341,-1804.87946844,0.00011339,2]
[326828405,1715470238747,-393.13811276,0.00011339,2]
[326828406,1715470238759,-4183.91737144,0.00011339,2]
[326828407,1715470238769,-151.96,0.00011362,2]
[326828408,1715470238778,-499.99,0.00011368,2]
[326828409,1715470238788,-679.23,0.00011378,2]
[326828410,1715470238798,-151.96,0.00011394,2]
[326828411,1715470238808,-151.96,0.00011427,2]
[326828412,1715470238817,-151.96,0.0001146,2]
[326828413,1715470238828,-151.96,0.00011493,2]
[326828414,1715470238838,-151.96,0.00011526,2]
[326828415,1715470238847,-151.96,0.00011558,2]
[326828416,1715470238857,-151.96,0.00011591,2]
[326828417,1715470238866,-151.96,0.00011624,2]
[326828418,1715470238875,-151.96,0.00011657,2]
[326828419,1715470238885,-151.96,0.0001169,2]
[326828421,1715470238894,-151.96,0.00011722,2]
[326828423,1715470238904,-168.19,0.00011743,2]
[326828425,1715470238913,-151.96,0.00011755,2]
[326828427,1715470238922,-151.96,0.00011788,2]
[326828429,1715470238931,-151.96,0.00011821,2]
[326828430,1715470238941,-151.96,0.00011854,2]
[326828431,1715470238950,-151.96,0.00011886,2]
[326828432,1715470238959,-151.96,0.00011919,2]
[326828433,1715470238968,-11455.3925027,0.00012,2]
[326828434,1715470238977,-3079.49301559,0.00012,2]
[326828435,1715470238987,-386.19,0.00012217,2]
[326828436,1715470238996,-320.77,0.00012306,2]
[326828437,1715470239005,-609.95985048,0.00012346,2]
[326828438,1715470239015,-167.68,0.0001235,2]
[326828439,1715470239025,-457.368272,0.00012419,2]
[326828440,1715470239035,-2350.9268,0.00012419,2]
[326828441,1715470239046,-189.398625,0.00012419,2]
[326828442,1715470239056,-187.099384,0.00012419,2]
[326828443,1715470239066,-484.932666,0.00012419,2]
[326828444,1715470239077,-196.45225,0.00012419,2]
[326828445,1715470239088,-457.368272,0.00012574,2]
[326828446,1715470239098,-2350.9268,0.00012574,2]
[326828447,1715470239108,-484.932666,0.00012574,2]
[326828448,1715470239118,-457.368272,0.00012729,2]
[326828449,1715470239128,-2350.9268,0.00012729,2]
[326828450,1715470239138,-484.932666,0.00012729,2]
[326828451,1715470239147,-256.32786092,0.00012738,2]
[326828452,1715470239158,-1562.7671594,0.00012749,2]
[326828453,1715470239168,-1999.0512,0.000128,2]
[326828454,1715470239178,-3504.8607,0.000128,2]
[326828455,1715470239188,-916.47227894,0.000128,2]
[326828456,1715470239198,-679.23,0.000128,2]
[326828457,1715470239208,-252.02181648,0.00012866,2]
[326828458,1715470239218,-3000.0,0.0001287,2]
[326828459,1715470239228,-457.368272,0.00012884,2]
[326828460,1715470239238,-2350.9268,0.00012884,2]
[326828461,1715470239248,-484.932666,0.00012884,2]
[326828462,1715470239527,-300.0,0.00012894,2]
[326828463,1715470239538,-159.19808631,0.00012899,2]
[326828464,1715470239548,-130643.8148,0.000129,2]
[326828465,1715470239559,-14952.3709,0.000129,2]
[326828466,1715470239569,-1023.66334099,0.000129,2]
[326828467,1715470239581,-1000.0,0.000129,2]
[326828468,1715470239591,-336.55610321,0.0001297,2]
[326828469,1715470239601,-2070.77455415,0.00012986,2]
[326828470,1715470239611,-394.466583,0.00012995,2]
[326828471,1715470239621,-3727.0924753,0.00012995,2]
[326828472,1715470239632,-363.81807592,0.00012996,2]
[326828473,1715470239642,-155.0,0.00012996,2]
[326828474,1715470239653,-3697.29672041,0.00012996,2]
[326828475,1715470239663,-4271.31667855,0.00012996,2]
[326828476,1715470239673,-493.22520156,0.00012997,2]
[326828477,1715470239683,-262.49805873,0.00012998,2]
[326828478,1715470239693,-255.1739171,0.00012998,2]
[326828479,1715470239703,-3083.85801135,0.00012998,2]
[326828480,1715470239713,-162.11231848,0.00012998,2]
[326828481,1715470239724,-554.84517864,0.00012998,2]
[326828482,1715470239734,-378.02727521,0.00012998,2]
[326828483,1715470239743,-1325.97003301,0.00012998,2]
[326828484,1715470239753,-155.0,0.00012998,2]
[326828485,1715470239763,-4736.48162627,0.00012998,2]
[326828486,1715470239773,-155.0,0.00012998,2]
[326828487,1715470239783,-3353.70644373,0.00012998,2]
[326828488,1715470239793,-155.0,0.00012998,2]
[326828489,1715470239803,-172.56468519,0.00012998,2]
[326828490,1715470239812,-324.0890106,0.00012998,2]
[326828491,1715470239825,-1052.05964256,0.00012998,2]
[326828492,1715470239835,-1995.67753337,0.00012998,2]
[326828493,1715470239845,-360.01550888,0.00012998,2]
[326828494,1715470239855,-155.13558921,0.00012998,2]
[326828495,1715470239866,-220.5413736,0.00012998,2]
[326828496,1715470239876,-155.0,0.00012998,2]
[326828497,1715470239886,-5551.89418728,0.00012998,2]
[326828498,1715470239896,-711.54040194,0.00012998,2]
[326828499,1715470239909,-155.89407901,0.00012998,2]
[326828500,1715470239920,-180.34517445,0.00012998,2]
[326828501,1715470239930,-155.0,0.00012998,2]
[326828502,1715470239941,-1395.8110513,0.00012998,2]
[326828503,1715470239951,-586.16293106,0.00012998,2]
[326828504,1715470239961,-161.77912912,0.00012998,2]
[326828505,1715470239971,-2100.0,0.00013,2]
[326828506,1715470239980,-188.77835514,0.00013,2]
[326828507,1715470239990,-343.45363572,0.00013,2]
[326828508,1715470240000,-2000.0,0.00013,2]
[326828509,1715470240010,-2000.0,0.00013,2]
[326828510,1715470240020,-200.0,0.00013,2]
[326828511,1715470240030,-2000.0,0.00013,2]
[326828512,1715470240040,-200.0,0.00013,2]
[326828513,1715470240050,-219.0,0.00013,2]
[326828514,1715470240060,-219.0,0.00013,2]
[326828515,1715470240070,-219.0,0.00013,2]
[326828518,1715470240080,-219.0,0.00013,2]
[326828519,1715470240089,-219.0,0.00013,2]
[326828520,1715470240098,-2000.0,0.00013,2]
[326828521,1715470240107,-200.0,0.00013,2]
[326828522,1715470240116,-2000.0,0.00013,2]
[326828524,1715470240126,-555.33024239,0.0001303,2]
[326828525,1715470240135,-17636.5887154,0.00013031,2]
[326828526,1715470240144,-564.3047851,0.00013031,2]
[326828527,1715470240153,-1416.68735,0.0001304,2]
[326828528,1715470240163,-12464.277918,0.0001304,2]
[326828529,1715470240172,-4985.711167,0.0001304,2]
[326828530,1715470240182,-566.67494,0.0001304,2]
[326828531,1715470240191,-17149.094209,0.0001304,2]
[326828532,1715470240201,-275.3788,0.0001304,2]
[326828533,1715470240211,-4862.485855,0.0001304,2]
[326828534,1715470240220,-565.388727,0.0001304,2]
[326828535,1715470240229,-386.89277,0.0001304,2]
[326828536,1715470240239,-7576.123435,0.0001304,2]
[326828537,1715470240248,-2276.715094,0.0001304,2]
[326828538,1715470240258,-11051.060963,0.0001304,2]
[326828539,1715470240267,-1206.822274,0.0001304,2]
[326828540,1715470240277,-457.368272,0.0001304,2]
[326828541,1715470240287,-2350.9268,0.0001304,2]
[326828542,1715470240297,-484.932666,0.0001304,2]
[326828543,1715470240307,-165.520287,0.0001304,2]
[326828544,1715470240316,-168.19,0.00013048,2]
[326828545,1715470240326,-243.846032,0.00013061,2]
[326828546,1715470240335,-5852.304767,0.00013061,2]
[326828547,1715470240345,-250.425325,0.00013061,2]
[326828548,1715470240356,-1546.111639,0.00013061,2]
[326828549,1715470240365,-1395.765338,0.00013061,2]
[326828550,1715470240375,-2093.648008,0.00013061,2]
[326828551,1715470240385,-331.53,0.00013101,2]
[326828552,1715470240395,-8106.0,0.00013103,2]
[326828553,1715470240405,-2000.0,0.0001313,2]
[326828554,1715470240415,-200.0,0.0001313,2]
[326828555,1715470240425,-2000.0,0.0001313,2]
[326828556,1715470240435,-200.0,0.0001313,2]
[326828557,1715470240445,-2000.0,0.0001313,2]
[326828558,1715470240454,-200.0,0.0001313,2]
[326828559,1715470240465,-2000.0,0.0001313,2]
[326828560,1715470240475,-150.0,0.00013154,2]
[326828561,1715470240485,-5026.89162971,0.00013163,2]
[326828562,1715470240495,-5000.0,0.00013163,2]
[326828563,1715470240504,-5000.0,0.00013163,2]
[326828564,1715470240514,-3019.35,0.00013163,2]
[326828565,1715470240524,-304.2,0.00013178,2]
[326828566,1715470240535,-189.398627,0.00013218,2]
[326828567,1715470240545,-196.452251,0.00013218,2]
[326828568,1715470240555,-243.846032,0.00013218,2]
[326828569,1715470240564,-5852.304767,0.00013218,2]
[326828570,1715470240575,-250.425325,0.00013218,2]
[326828571,1715470240585,-1546.111639,0.00013218,2]
[326828572,1715470240596,-1395.765338,0.00013218,2]
[326828573,1715470240606,-2093.648008,0.00013218,2]
[326828574,1715470240616,-2000.0,0.00013261,2]
[326828575,1715470240626,-200.0,0.00013261,2]
[326828576,1715470240637,-2000.0,0.00013261,2]
[326828577,1715470240647,-200.0,0.00013261,2]
[326828578,1715470240657,-200.0,0.00013261,2]
[326828579,1715470240667,-150.0,0.00013365,2]
[326828580,1715470240677,-2000.0,0.00013394,2]
[326828581,1715470240687,-200.0,0.00013394,2]
[326828582,1715470240696,-2000.0,0.00013394,2]
[326828583,1715470240706,-200.0,0.00013394,2]
[326828584,1715470240716,-200.0,0.00013394,2]
[326828585,1715470240725,-316.1,0.000134,2]
[326828586,1715470240735,-4393.95,0.00013425,2]
[326828587,1715470240745,-298.48,0.00013425,2]
[326828588,1715470240755,-2000.0,0.00013528,2]
[326828589,1715470240765,-200.0,0.00013528,2]
[326828590,1715470240775,-2000.0,0.00013528,2]
[326828591,1715470240785,-200.0,0.00013528,2]
[326828592,1715470240795,-916.47227892,0.00013571,2]
[326828593,1715470240805,-155.60670894,0.000136,2]
[326828594,1715470240815,-320.77,0.00013673,2]
[326828595,1715470240825,-200.0,0.00013699,2]
[326828596,1715470240837,-200.0,0.00013699,2]
[326828597,1715470240846,-200.0,0.00013699,2]
[326828598,1715470240856,-200.0,0.00013699,2]
[326828599,1715470240866,-200.0,0.00013699,2]
[326828600,1715470240875,-200.0,0.00013699,2]
[326828601,1715470240885,-1000.0,0.00013699,2]
[326828602,1715470240894,-1000.0,0.00013699,2]
[326828603,1715470240903,-1000.0,0.00013699,2]
[326828604,1715470240913,-1000.0,0.00013699,2]
[326828605,1715470240923,-591.0,0.00013699,2]
[326828606,1715470240932,-1000.0,0.00013699,2]
[326828607,1715470240942,-6070.49,0.00013699,2]
[326828608,1715470240951,-200.0,0.00013699,2]
[326828609,1715470240961,-2308.81,0.00013699,2]
[326828610,1715470240970,-5002.19,0.00013699,2]
[326828611,1715470240979,-1000.0,0.00013699,2]
[326828612,1715470240989,-1000.0,0.00013699,2]
[326828613,1715470240998,-1000.0,0.00013699,2]
[326828614,1715470241008,-1000.0,0.00013699,2]
[326828615,1715470241017,-825.0,0.00013699,2]
[326828616,1715470241026,-500.0,0.00013699,2]
[326828617,1715470241036,-1000.0,0.00013699,2]
[326828618,1715470241045,-1000.0,0.00013699,2]
[326828619,1715470241054,-1000.0,0.00013699,2]
[326828620,1715470241063,-1000.0,0.00013699,2]
[326828621,1715470241073,-1000.0,0.00013699,2]
[326828622,1715470241082,-1000.0,0.00013699,2]
[326828623,1715470241091,-1000.0,0.00013699,2]
[326828624,1715470241101,-1000.0,0.00013699,2]
[326828625,1715470241110,-1000.0,0.00013699,2]
[326828626,1715470241119,-1000.0,0.00013699,2]
[326828627,1715470241129,-1000.0,0.00013699,2]
[326828628,1715470241138,-1000.0,0.00013699,2]
[326828629,1715470241147,-2751.0,0.00013699,2]
[326828630,1715470241156,-32912.12,0.00013699,2]
[326828631,1715470241166,-555.3302423,0.00013735,2]
[326828632,1715470241175,-386.19,0.00013745,2]
[326828633,1715470241185,-1023.66334098,0.00013898,2]
[326828634,1715470241194,-250.744323,0.00013973,2]
[326828635,1715470241203,-150.0,0.00013974,2]
[326828636,1715470241213,-307.88,0.00013974,2]
[326828637,1715470241222,-150.85,0.00013974,2]
[326828638,1715470241232,-192.13800731,0.00014,2]
[326828639,1715470241242,-2000.0,0.00014,2]
[326828640,1715470241251,-679.23,0.00014223,2]
[326828641,1715470241260,-916.47227892,0.00014341,2]
[326828642,1715470241269,-168.19,0.00014352,2]
[326828643,1715470241278,-555.3302423,0.0001444,2]
[326828644,1715470241287,-5015.61303189,0.00014454,2]
[326828645,1715470241297,-5000.0,0.00014454,2]
[326828646,1715470241306,-5000.0,0.00014454,2]
[326828647,1715470241315,-250.744323,0.00014795,2]
[326828648,1715470241325,-1194.67,0.00014796,2]
[326828649,1715470241335,-304.74,0.00014796,2]
[326828650,1715470241345,-300.0,0.00014796,2]
[326828651,1715470241354,-420.25,0.00014796,2]
[326828652,1715470241363,-420.25,0.00014796,2]
[326828653,1715470241373,-420.25,0.00014796,2]
[326828654,1715470241382,-173.92,0.00014796,2]
[326828655,1715470241391,-501.79,0.00014796,2]
[326828656,1715470241401,-1023.66334098,0.00014899,2]
[326828657,1715470241411,-254.58205558,0.000149,2]
[326828658,1715470241420,-10000.0,0.000149,2]
[326828659,1715470241429,-9606.44046731,0.000149,2]
[326828660,1715470241439,-394.466583,0.0001499,2]
[326828661,1715470241448,-564.390102,0.0001499,2]
[326828662,1715470241457,-282.22154129,0.00015,2]
[326828663,1715470241467,-4214.385869,0.00015,2]
[326828664,1715470241476,-485.0,0.00015,2]
[326828665,1715470241485,-155.0,0.00015,2]
[326828666,1715470241495,-620.17892849,0.00015,2]
[326828667,1715470241505,-155.44881182,0.00015,2]
[326828668,1715470241514,-30000.0,0.00015,2]
[326828669,1715470241524,-13033.38861575,0.00015,10]
[326828670,1715470241533,-200.0,0.00015,2]
[326828671,1715470241543,-155.73435284,0.00015,2]
[326828672,1715470241553,-485.0,0.00015,2]
[326828673,1715470241563,-500.0,0.00015,2]
[326828674,1715470241572,-215.4075171,0.00015,2]
[326828675,1715470241582,-2000.0,0.00015,2]
[326828676,1715470241591,-1172.0,0.00015,2]
[326828677,1715470241601,-8013.0,0.00015,2]
[326828678,1715470241610,-151.0,0.00015,2]
[326828679,1715470241620,-151.0,0.00015,2]
[326828680,1715470241629,-151.0,0.00015,2]
[326828681,1715470241639,-151.0,0.00015,2]
[326828682,1715470241648,-615.67062626,0.00015,2]
[326828683,1715470241657,-615.67062626,0.00015,2]
[326828684,1715470241667,-615.67062626,0.00015,2]
[326828685,1715470241676,-615.67062626,0.00015,2]
[326828686,1715470241685,-615.67062626,0.00015,2]
[326828687,1715470241696,-615.67062626,0.00015,2]
[326828688,1715470241706,-615.67062626,0.00015,2]
[326828689,1715470241716,-615.67062626,0.00015,2]
[326828690,1715470241726,-615.67062626,0.00015,2]
[326828691,1715470241737,-615.67062626,0.00015,2]
[326828692,1715470241746,-615.67062626,0.00015,2]
[326828693,1715470241756,-615.67062626,0.00015,2]
[326828694,1715470241766,-615.67062626,0.00015,2]
[326828695,1715470241775,-615.67062626,0.00015,2]
[326828696,1715470241785,-615.67062626,0.00015,2]
[326828697,1715470241795,-615.67062626,0.00015,2]
[326828698,1715470241805,-615.67062626,0.00015,2]
[326828699,1715470241815,-615.67062626,0.00015,2]
[326828700,1715470241829,-615.67062626,0.00015,2]
[326828701,1715470241838,-615.67062626,0.00015,2]
[326828702,1715470241848,-615.67062626,0.00015,2]
[326828703,1715470241858,-615.67062626,0.00015,2]
[326828704,1715470241868,-615.67062626,0.00015,2]
[326828705,1715470241877,-615.67062626,0.00015,2]
[326828706,1715470241886,-615.67062626,0.00015,2]
[326828707,1715470241896,-615.67062626,0.00015,2]
[326828708,1715470241906,-615.67062626,0.00015,2]
[326828709,1715470241915,-615.67062626,0.00015,2]
[326828710,1715470241924,-615.67062626,0.00015,2]
[326828711,1715470241934,-615.67062626,0.00015,2]
[326828712,1715470241943,-615.67062626,0.00015,2]
[326828713,1715470241953,-615.67062626,0.00015,2]
[326828714,1715470241962,-615.67062626,0.00015,2]
[326828715,1715470241972,-615.67062626,0.00015,2]
[326828716,1715470241982,-50381.0,0.00015,2]
[326828717,1715470241991,-151.0,0.00015,2]
[326828718,1715470242002,-151.0,0.00015,2]
[326828719,1715470242012,-1318.271887,0.00015,2]
[326828720,1715470242022,-1318.271887,0.00015,2]
[326828721,1715470242031,-151.0,0.00015,2]
[326828722,1715470242040,-151.0,0.00015,2]
[326828723,1715470242050,-520.3013,0.00015,2]
[326828724,1715470242059,-186.632564,0.00015,2]
[326828725,1715470242069,-520.3013,0.00015,2]
[326828726,1715470242079,-186.632564,0.00015,2]
[326828727,1715470242088,-151.0,0.00015,2]
[326828728,1715470242097,-151.0,0.00015,2]
[326828729,1715470242106,-151.0,0.00015,2]
[326828730,1715470242115,-182.09688,0.00015,2]
[326828731,1715470242125,-151.0,0.00015,2]
[326828732,1715470242135,-182.09688,0.00015,2]
[326828733,1715470242144,-151.0,0.00015,2]
[326828734,1715470242154,-5433.643946,0.00015,2]
[326828735,1715470242163,-5433.643946,0.00015,2]
[326828736,1715470242173,-5433.643946,0.00015,2]
[326828737,1715470242182,-5433.643946,0.00015,2]
[326828738,1715470242191,-5433.643946,0.00015,2]
[326828739,1715470242201,-5433.643946,0.00015,2]
[326828740,1715470242210,-5433.643946,0.00015,2]
[326828741,1715470242220,-5433.643946,0.00015,2]
[326828742,1715470242229,-309.748889,0.00015,2]
[326828743,1715470242239,-5433.643946,0.00015,2]
[326828744,1715470242248,-5433.643946,0.00015,2]
[326828745,1715470242257,-5433.643946,0.00015,2]
[326828746,1715470242267,-5433.643946,0.00015,2]
[326828747,1715470242276,-5433.643946,0.00015,2]
[326828748,1715470242286,-5433.643946,0.00015,2]
[326828749,1715470242296,-5433.643946,0.00015,2]
[326828750,1715470242305,-5433.643946,0.00015,2]
[326828751,1715470242315,-5433.643946,0.00015,2]
[326828752,1715470242324,-5433.643946,0.00015,2]
[326828753,1715470242334,-5433.643946,0.00015,2]
[326828754,1715470242343,-5433.643946,0.00015,2]
[326828755,1715470242353,-5433.643946,0.00015,2]
[326828756,1715470242362,-5433.643946,0.00015,2]
[326828757,1715470242372,-5433.643946,0.00015,2]
[326828758,1715470242382,-5433.643946,0.00015,2]
[326828759,1715470242391,-5433.643946,0.00015,2]
[326828760,1715470242402,-5433.643946,0.00015,2]
[326828761,1715470242412,-5433.643946,0.00015,2]
[326828762,1715470242422,-5433.643946,0.00015,2]
[326828763,1715470242431,-5433.643946,0.00015,2]
[326828764,1715470242440,-5433.643946,0.00015,2]
[326828765,1715470242450,-5433.643946,0.00015,2]
[326828766,1715470242460,-5433.643946,0.00015,2]
[326828767,1715470242469,-5433.643946,0.00015,2]
[326828768,1715470242479,-5433.643946,0.00015,2]
[326828769,1715470242488,-5433.643946,0.00015,2]
[326828770,1715470242497,-309.748889,0.00015,2]
[326828771,1715470242507,-5433.643946,0.00015,2]
[326828772,1715470242516,-5433.643946,0.00015,2]
[326828773,1715470242525,-5433.643946,0.00015,2]
[326828774,1715470242534,-5433.643946,0.00015,2]
[326828775,1715470242544,-5433.643946,0.00015,2]
[326828776,1715470242553,-5433.643946,0.00015,2]
[326828777,1715470242563,-5433.643946,0.00015,2]
[326828778,1715470242572,-5433.643946,0.00015,2]
[326828779,1715470242582,-5433.643946,0.00015,2]
[326828780,1715470242592,-5433.643946,0.00015,2]
[326828781,1715470242601,-5433.643946,0.00015,2]
[326828782,1715470242610,-151.0,0.00015,2]
[326828783,1715470242620,-5433.643946,0.00015,2]
[326828784,1715470242629,-5433.643946,0.00015,2]
[326828785,1715470242639,-5433.643946,0.00015,2]
[326828786,1715470242649,-5433.643946,0.00015,2]
[326828787,1715470242658,-151.0,0.00015,2]
[326828788,1715470242668,-2609.318703,0.00015,2]
[326828789,1715470242678,-320.77,0.0001504,2]
[326828790,1715470242687,-300.0,0.00015068,2]
[326828791,1715470242697,-300.0,0.00015068,2]
[326828792,1715470242706,-150.0,0.00015075,2]
[326828793,1715470242716,-150.0,0.00015075,2]
[326828794,1715470242725,-150.0,0.00015075,2]
[326828795,1715470242735,-916.47227892,0.00015112,2]
[326828796,1715470242744,-555.3302423,0.00015145,2]
[326828797,1715470242754,-151.0,0.000152,2]
[326828798,1715470242763,-151.0,0.000152,2]
[326828799,1715470242773,-151.0,0.000152,2]
[326828800,1715470242783,-151.0,0.000152,2]
[326828801,1715470242792,-501.542542,0.000152,2]
[326828802,1715470242802,-151.0,0.000152,2]
[326828803,1715470242812,-501.542542,0.000152,2]
[326828804,1715470242822,-151.0,0.000152,2]
[326828805,1715470242832,-151.0,0.000152,2]
[326828806,1715470242842,-151.0,0.000152,2]
[326828807,1715470242852,-555.020162,0.000152,2]
[326828808,1715470242862,-555.020162,0.000152,2]
[326828809,1715470242872,-474.414101,0.000152,2]
[326828810,1715470242881,-151.0,0.000152,2]
[326828811,1715470242891,-151.0,0.000152,2]
[326828812,1715470242900,-474.414101,0.000152,2]
[326828813,1715470242910,-151.0,0.000152,2]
[326828814,1715470242919,-151.0,0.000152,2]